[Event "Titled Tuesday Blitz August 22 Late 2023"]
[White "Kramnik, Vladimir"]
[Black "Martinez Ramirez, Lennis"]
[WhiteFideId "4101588"]
[BlackFideId "3509079"]
[WhiteElo "2930"]
[BlackElo "2739"]
[Result "1-0"]
[Round "6"]
[TimeControl "180+1"]
[Date "2023.08.22"]
[WhiteClock "0:00:11"]
[BlackClock "0:00:02"]
[Board "23"]

1. c4 {[%clk 0:03:00]}  d6 {[%clk 0:03:00]} 2. Nc3 {[%clk 0:02:58]}  e5 {[%clk 0:03:00]} 3. g3 {[%clk 0:02:56]}  f5 {[%clk 0:02:56]} 4. Bg2 {[%clk 0:02:55]}  Nf6 {[%clk 0:02:56]} 5. d3 {[%clk 0:02:52]}  Be7 {[%clk 0:02:56]} 6. Nf3 {[%clk 0:02:49]}  a5 {[%clk 0:02:57]} 7. O-O {[%clk 0:02:49]}  O-O {[%clk 0:02:57]} 8. b3 {[%clk 0:02:47]}  Qe8 {[%clk 0:02:55]} 9. e3 {[%clk 0:02:42]}  c6 {[%clk 0:02:54]} 10. c5 {[%clk 0:02:35]}  e4 {[%clk 0:02:52]} 11. cxd6 {[%clk 0:02:27]}  Bxd6 {[%clk 0:02:48]} 12. dxe4 {[%clk 0:02:24]}  Bb4 {[%clk 0:02:48]} 13. Bb2 {[%clk 0:02:11]}  fxe4 {[%clk 0:02:48]} 14. Nd2 {[%clk 0:02:06]}  Bf5 {[%clk 0:02:46]} 15. Nc4 {[%clk 0:02:04]}  Nbd7 {[%clk 0:02:41]} 16. Nd6 {[%clk 0:01:54]}  Bxd6 {[%clk 0:02:20]} 17. Qxd6 {[%clk 0:01:54]}  Rd8 {[%clk 0:01:56]} 18. Ne2 {[%clk 0:01:42]}  Bg4 {[%clk 0:01:50]} 19. Nf4 {[%clk 0:01:27]}  g5 {[%clk 0:01:49]} 20. h3 {[%clk 0:01:15]}  gxf4 {[%clk 0:01:37]} 21. hxg4 {[%clk 0:01:09]}  f3 {[%clk 0:01:37]} 22. Bh3 {[%clk 0:01:08]}  h6 {[%clk 0:01:01]} 23. Rad1 {[%clk 0:01:05]}  Qg6 {[%clk 0:00:40]} 24. g5 {[%clk 0:00:56]}  hxg5 {[%clk 0:00:40]} 25. Be6+ {[%clk 0:00:38]}  Kh7 {[%clk 0:00:37]} 26. Qe7+ {[%clk 0:00:33]}  Kh6 {[%clk 0:00:17]} 27. Bxd7 {[%clk 0:00:32]}  Nd5 {[%clk 0:00:03]} 28. Qe6 {[%clk 0:00:22]}  Rxd7 {[%clk 0:00:04]} 29. Qxd7 {[%clk 0:00:22]}  g4 {[%clk 0:00:04]} 30. Rxd5 {[%clk 0:00:19]}  cxd5 {[%clk 0:00:05]} 31. Qxd5 {[%clk 0:00:18]}  Rf5 {[%clk 0:00:05]} 32. Qd8 {[%clk 0:00:17]}  Rh5 {[%clk 0:00:04]} 33. Rd1 {[%clk 0:00:14]}  Rf5 {[%clk 0:00:02]} 34. Rd6 {[%clk 0:00:13]}  Kh5 {[%clk 0:00:02]} 35. Qh8+ {[%clk 0:00:11]}  Kg5 {[%clk 0:00:02]} 36. Qh4# {[%clk 0:00:11]} 1-0


[Site "https://www.chess.com"]

[Event "Titled Tuesday Blitz August 22 Late 2023"]
[White "Kamsky, Gata"]
[Black "Kuzmicz, Krystian"]
[WhiteFideId "2000024"]
[BlackFideId "1119125"]
[WhiteElo "2926"]
[BlackElo "2737"]
[Result "1/2-1/2"]
[Round "6"]
[TimeControl "180+1"]
[Date "2023.08.22"]
[WhiteClock "0:00:50"]
[BlackClock "0:00:18"]
[Board "24"]

1. d4 {[%clk 0:03:00]}  g6 {[%clk 0:02:57]} 2. c3 {[%clk 0:02:58]}  Bg7 {[%clk 0:02:57]} 3. Nf3 {[%clk 0:02:55]}  d6 {[%clk 0:02:57]} 4. e4 {[%clk 0:02:51]}  Nd7 {[%clk 0:02:56]} 5. Bg5 {[%clk 0:02:48]}  c6 {[%clk 0:02:52]} 6. Nbd2 {[%clk 0:02:47]}  Qc7 {[%clk 0:02:44]} 7. Bd3 {[%clk 0:02:45]}  Ngf6 {[%clk 0:02:44]} 8. O-O {[%clk 0:02:44]}  e5 {[%clk 0:02:44]} 9. Re1 {[%clk 0:02:44]}  O-O {[%clk 0:02:44]} 10. a4 {[%clk 0:02:44]}  h6 {[%clk 0:02:42]} 11. Bh4 {[%clk 0:02:43]}  Nh5 {[%clk 0:02:42]} 12. a5 {[%clk 0:02:36]}  Nf4 {[%clk 0:02:40]} 13. Bf1 {[%clk 0:02:36]}  g5 {[%clk 0:02:39]} 14. Bg3 {[%clk 0:02:35]}  Nf6 {[%clk 0:02:36]} 15. dxe5 {[%clk 0:02:32]}  dxe5 {[%clk 0:02:36]} 16. Nc4 {[%clk 0:02:32]}  Nd7 {[%clk 0:02:10]} 17. Qd6 {[%clk 0:02:30]}  Qxd6 {[%clk 0:02:05]} 18. Nxd6 {[%clk 0:02:30]}  Nc5 {[%clk 0:02:06]} 19. b4 {[%clk 0:02:24]}  Ncd3 {[%clk 0:02:00]} 20. Red1 {[%clk 0:02:22]}  Rd8 {[%clk 0:01:51]} 21. Bxf4 {[%clk 0:02:20]}  Nxf4 {[%clk 0:01:48]} 22. Bc4 {[%clk 0:02:19]}  Ne6 {[%clk 0:01:16]} 23. Nxf7 {[%clk 0:01:54]}  Rxd1+ {[%clk 0:01:11]} 24. Rxd1 {[%clk 0:01:53]}  Kxf7 {[%clk 0:01:11]} 25. Ne1 {[%clk 0:01:30]}  Ke7 {[%clk 0:01:08]} 26. Nc2 {[%clk 0:01:30]}  Nc7 {[%clk 0:01:01]} 27. Ne3 {[%clk 0:01:29]}  b6 {[%clk 0:01:01]} 28. Ra1 {[%clk 0:01:26]}  b5 {[%clk 0:00:55]} 29. Bb3 {[%clk 0:01:25]}  Bd7 {[%clk 0:00:50]} 30. f3 {[%clk 0:01:19]}  Rd8 {[%clk 0:00:50]} 31. Kf2 {[%clk 0:01:19]}  Bc8 {[%clk 0:00:42]} 32. Ke2 {[%clk 0:01:18]}  Ke8 {[%clk 0:00:40]} 33. g3 {[%clk 0:01:17]}  Bf8 {[%clk 0:00:40]} 34. Rb1 {[%clk 0:01:14]}  c5 {[%clk 0:00:39]} 35. Nd5 {[%clk 0:01:13]}  Nxd5 {[%clk 0:00:39]} 36. Bxd5 {[%clk 0:01:13]}  cxb4 {[%clk 0:00:33]} 37. cxb4 {[%clk 0:01:13]}  Bd7 {[%clk 0:00:33]} 38. a6 {[%clk 0:00:56]}  Rc8 {[%clk 0:00:33]} 39. Kd3 {[%clk 0:00:53]}  Bd6 {[%clk 0:00:32]} 40. h4 {[%clk 0:00:52]}  gxh4 {[%clk 0:00:26]} 41. gxh4 {[%clk 0:00:53]}  Ke7 {[%clk 0:00:26]} 42. Rg1 {[%clk 0:00:52]}  Kf6 {[%clk 0:00:26]} 43. h5 {[%clk 0:00:51]}  Bxb4 {[%clk 0:00:24]} 44. Rg6+ {[%clk 0:00:50]}  Ke7 {[%clk 0:00:25]} 45. Rxh6 {[%clk 0:00:49]}  Rc3+ {[%clk 0:00:24]} 46. Ke2 {[%clk 0:00:49]}  Bc5 {[%clk 0:00:23]} 47. Rh7+ {[%clk 0:00:48]}  Kd6 {[%clk 0:00:23]} 48. Rh6+ {[%clk 0:00:48]}  Kc7 {[%clk 0:00:23]} 49. Rh7 {[%clk 0:00:49]}  Re3+ {[%clk 0:00:22]} 50. Kd2 {[%clk 0:00:48]}  Kd6 {[%clk 0:00:18]} 51. Rh6+ {[%clk 0:00:48]}  Kc7 {[%clk 0:00:18]} 52. Rh7 {[%clk 0:00:48]}  Kd6 {[%clk 0:00:18]} 53. Rh6+ {[%clk 0:00:49]}  Ke7 {[%clk 0:00:18]} 54. Rh7+ {[%clk 0:00:49]}  Kd8 {[%clk 0:00:18]} 55. Rh8+ {[%clk 0:00:49]}  Kc7 {[%clk 0:00:18]} 56. Rh7 {[%clk 0:00:50]} 1/2-1/2


[Site "https://www.chess.com"]

[Event "Titled Tuesday Blitz August 22 Late 2023"]
[White "Dominguez Perez, Leinier"]
[Black "Matinian, Nikita"]
[WhiteFideId "3503240"]
[BlackFideId "24129100"]
[WhiteElo "2921"]
[BlackElo "2720"]
[Result "1-0"]
[Round "6"]
[TimeControl "180+1"]
[Date "2023.08.22"]
[WhiteClock "0:00:04"]
[BlackClock "0:00:00"]
[Board "26"]

1. e4 {[%clk 0:03:00]}  c5 {[%clk 0:02:59]} 2. Nf3 {[%clk 0:03:00]}  d6 {[%clk 0:03:00]} 3. d4 {[%clk 0:03:01]}  cxd4 {[%clk 0:03:00]} 4. Nxd4 {[%clk 0:03:02]}  Nf6 {[%clk 0:03:01]} 5. Nc3 {[%clk 0:03:02]}  g6 {[%clk 0:03:01]} 6. Be3 {[%clk 0:03:02]}  Nc6 {[%clk 0:03:01]} 7. f3 {[%clk 0:03:01]}  h5 {[%clk 0:03:01]} 8. Qd2 {[%clk 0:03:00]}  Nxd4 {[%clk 0:03:00]} 9. Bxd4 {[%clk 0:03:00]}  Bh6 {[%clk 0:03:00]} 10. Be3 {[%clk 0:02:59]}  Bxe3 {[%clk 0:02:59]} 11. Qxe3 {[%clk 0:02:59]}  Qa5 {[%clk 0:02:58]} 12. Bc4 {[%clk 0:02:55]}  Be6 {[%clk 0:02:53]} 13. Bxe6 {[%clk 0:02:42]}  fxe6 {[%clk 0:02:54]} 14. O-O-O {[%clk 0:02:42]}  Rc8 {[%clk 0:02:53]} 15. Kb1 {[%clk 0:02:42]}  Kf7 {[%clk 0:02:53]} 16. Rd4 {[%clk 0:02:39]}  Rc7 {[%clk 0:02:38]} 17. Qd2 {[%clk 0:01:52]}  Rhc8 {[%clk 0:02:32]} 18. Rd1 {[%clk 0:01:47]}  b5 {[%clk 0:02:15]} 19. a3 {[%clk 0:01:22]}  e5 {[%clk 0:01:28]} 20. Rd3 {[%clk 0:01:19]}  b4 {[%clk 0:01:25]} 21. axb4 {[%clk 0:01:16]}  Qxb4 {[%clk 0:01:26]} 22. Nd5 {[%clk 0:01:08]}  Nxd5 {[%clk 0:01:16]} 23. Rxd5 {[%clk 0:01:08]}  Qb6 {[%clk 0:01:01]} 24. Rc1 {[%clk 0:01:01]}  Rb8 {[%clk 0:00:28]} 25. b3 {[%clk 0:01:00]}  Rbc8 {[%clk 0:00:25]} 26. Kb2 {[%clk 0:00:51]}  Rc5 {[%clk 0:00:20]} 27. Rxc5 {[%clk 0:00:44]}  Qxc5 {[%clk 0:00:21]} 28. Ra1 {[%clk 0:00:44]}  Rc7 {[%clk 0:00:20]} 29. Ra4 {[%clk 0:00:40]}  Kf6 {[%clk 0:00:17]} 30. Rc4 {[%clk 0:00:21]}  Qb6 {[%clk 0:00:16]} 31. Rxc7 {[%clk 0:00:19]}  Qxc7 {[%clk 0:00:17]} 32. Qh6 {[%clk 0:00:18]}  Qc5 {[%clk 0:00:14]} 33. Qd2 {[%clk 0:00:14]}  Qd4+ {[%clk 0:00:09]} 34. Qc3 {[%clk 0:00:06]}  g5 {[%clk 0:00:05]} 35. b4 {[%clk 0:00:06]}  g4 {[%clk 0:00:04]} 36. Kb3 {[%clk 0:00:05]}  Qd1 {[%clk 0:00:03]} 37. Qe3 {[%clk 0:00:05]}  Qb1+ {[%clk 0:00:03]} 38. Kc3 {[%clk 0:00:05]}  Qa1+ {[%clk 0:00:03]} 39. Kd2 {[%clk 0:00:02]}  Qd4+ {[%clk 0:00:03]} 40. Qxd4 {[%clk 0:00:02]}  exd4 {[%clk 0:00:04]} 41. f4 {[%clk 0:00:03]}  e5 {[%clk 0:00:04]} 42. f5 {[%clk 0:00:02]}  d5 {[%clk 0:00:05]} 43. Kd3 {[%clk 0:00:02]}  a6 {[%clk 0:00:02]} 44. g3 {[%clk 0:00:01]}  dxe4+ {[%clk 0:00:02]} 45. Kxe4 {[%clk 0:00:01]}  Ke7 {[%clk 0:00:01]} 46. Kxe5 {[%clk 0:00:02]}  d3 {[%clk 0:00:02]} 47. cxd3 {[%clk 0:00:02]}  a5 {[%clk 0:00:02]} 48. f6+ {[%clk 0:00:03]}  Kf7 {[%clk 0:00:00]} 49. bxa5 {[%clk 0:00:04]} 1-0


[Site "https://www.chess.com"]

[Event "Titled Tuesday Blitz August 22 Late 2023"]
[White "Saif, Malek"]
[Black "Ibarra Jerez, Jose Carlos"]
[WhiteFideId "8104220"]
[BlackFideId "2226332"]
[WhiteElo "2642"]
[BlackElo "2905"]
[Result "1-0"]
[Round "6"]
[TimeControl "180+1"]
[Date "2023.08.22"]
[WhiteClock "0:00:22"]
[BlackClock "0:00:32"]
[Board "27"]

1. e4 {[%clk 0:03:00]}  c5 {[%clk 0:02:59]} 2. Nf3 {[%clk 0:03:01]}  Nc6 {[%clk 0:02:59]} 3. d4 {[%clk 0:03:01]}  cxd4 {[%clk 0:02:59]} 4. Nxd4 {[%clk 0:03:02]}  e5 {[%clk 0:03:00]} 5. Nb5 {[%clk 0:03:01]}  d6 {[%clk 0:03:00]} 6. N1c3 {[%clk 0:02:59]}  a6 {[%clk 0:02:55]} 7. Na3 {[%clk 0:03:00]}  Be6 {[%clk 0:02:56]} 8. Be2 {[%clk 0:02:58]}  b5 {[%clk 0:02:44]} 9. Nd5 {[%clk 0:02:58]}  Nf6 {[%clk 0:02:44]} 10. Bg5 {[%clk 0:02:55]}  Be7 {[%clk 0:02:43]} 11. Bxf6 {[%clk 0:02:52]}  Bxf6 {[%clk 0:02:43]} 12. c3 {[%clk 0:02:52]}  Bg5 {[%clk 0:02:39]} 13. O-O {[%clk 0:02:50]}  O-O {[%clk 0:02:39]} 14. Nc2 {[%clk 0:02:49]}  g6 {[%clk 0:02:34]} 15. f4 {[%clk 0:02:42]}  exf4 {[%clk 0:02:33]} 16. Nxf4 {[%clk 0:02:42]}  Qe7 {[%clk 0:02:16]} 17. Nd5 {[%clk 0:02:37]}  Qa7+ {[%clk 0:02:11]} 18. Kh1 {[%clk 0:02:37]}  Rae8 {[%clk 0:02:02]} 19. Bg4 {[%clk 0:02:29]}  Bxd5 {[%clk 0:01:59]} 20. exd5 {[%clk 0:02:23]}  Ne5 {[%clk 0:01:57]} 21. Nd4 {[%clk 0:02:23]}  Nc4 {[%clk 0:01:52]} 22. Rf2 {[%clk 0:02:17]}  Qc5 {[%clk 0:01:48]} 23. Qf3 {[%clk 0:02:07]}  Re3 {[%clk 0:01:43]} 24. Qd1 {[%clk 0:01:20]}  Qxd5 {[%clk 0:01:41]} 25. Bf3 {[%clk 0:01:16]}  Qc5 {[%clk 0:01:33]} 26. Qf1 {[%clk 0:01:11]}  Ne5 {[%clk 0:01:19]} 27. Bd1 {[%clk 0:00:55]}  Nd3 {[%clk 0:01:09]} 28. Re2 {[%clk 0:00:46]}  Rfe8 {[%clk 0:01:10]} 29. Bb3 {[%clk 0:00:40]}  Rxe2 {[%clk 0:01:04]} 30. Qxf7+ {[%clk 0:00:29]}  Kh8 {[%clk 0:01:04]} 31. Nxe2 {[%clk 0:00:29]}  Nf2+ {[%clk 0:01:04]} 32. Kg1 {[%clk 0:00:30]}  Ng4+ {[%clk 0:00:49]} 33. Kh1 {[%clk 0:00:27]}  Ne5 {[%clk 0:00:40]} 34. Qxe8+ {[%clk 0:00:25]}  Kg7 {[%clk 0:00:40]} 35. Nd4 {[%clk 0:00:24]}  Kh6 {[%clk 0:00:35]} 36. Qf8+ {[%clk 0:00:22]}  Kh5 {[%clk 0:00:35]} 37. Bd1+ {[%clk 0:00:22]}  Ng4 {[%clk 0:00:34]} 38. Bxg4+ {[%clk 0:00:22]}  Kxg4 {[%clk 0:00:32]} 39. Qf3+ {[%clk 0:00:22]} 1-0


[Site "https://www.chess.com"]

[Event "Titled Tuesday Blitz August 22 Late 2023"]
[White "Kravtsiv, Martyn"]
[Black "Vovk, Orest"]
[WhiteFideId "14113147"]
[BlackFideId "14113490"]
[WhiteElo "2892"]
[BlackElo "2546"]
[Result "1-0"]
[Round "6"]
[TimeControl "180+1"]
[Date "2023.08.22"]
[WhiteClock "0:01:04"]
[BlackClock "0:00:00"]
[Board "31"]

1. e4 {[%clk 0:03:00]}  g5 {[%clk 0:02:55]} 2. d3 {[%clk 0:02:58]}  h6 {[%clk 0:02:54]} 3. h4 {[%clk 0:02:57]}  d5 {[%clk 0:02:51]} 4. hxg5 {[%clk 0:02:56]}  dxe4 {[%clk 0:02:50]} 5. dxe4 {[%clk 0:02:56]}  Qxd1+ {[%clk 0:02:49]} 6. Kxd1 {[%clk 0:02:56]}  Nc6 {[%clk 0:02:46]} 7. Nc3 {[%clk 0:02:55]}  Bg4+ {[%clk 0:02:33]} 8. f3 {[%clk 0:02:44]}  O-O-O+ {[%clk 0:02:33]} 9. Bd2 {[%clk 0:02:38]}  Be6 {[%clk 0:02:32]} 10. Kc1 {[%clk 0:02:31]}  Bg7 {[%clk 0:02:32]} 11. gxh6 {[%clk 0:02:29]}  Bxh6 {[%clk 0:01:25]} 12. Bxh6 {[%clk 0:02:27]}  Rxh6 {[%clk 0:01:26]} 13. Rxh6 {[%clk 0:02:26]}  Nxh6 {[%clk 0:01:26]} 14. Nge2 {[%clk 0:02:26]}  f6 {[%clk 0:01:16]} 15. b3 {[%clk 0:02:25]}  Nf7 {[%clk 0:01:08]} 16. Kb2 {[%clk 0:02:25]}  Nfe5 {[%clk 0:01:03]} 17. Rd1 {[%clk 0:02:23]}  Rg8 {[%clk 0:00:57]} 18. Nf4 {[%clk 0:02:21]}  Bf7 {[%clk 0:00:56]} 19. Ncd5 {[%clk 0:02:19]}  Bxd5 {[%clk 0:00:52]} 20. Nxd5 {[%clk 0:02:19]}  a6 {[%clk 0:00:47]} 21. Rd2 {[%clk 0:02:14]}  Rd8 {[%clk 0:00:39]} 22. Kc1 {[%clk 0:02:12]}  Rh8 {[%clk 0:00:33]} 23. Ne3 {[%clk 0:02:06]}  e6 {[%clk 0:00:24]} 24. Rf2 {[%clk 0:02:01]}  Rg8 {[%clk 0:00:17]} 25. Be2 {[%clk 0:01:58]}  Nd4 {[%clk 0:00:15]} 26. Bd1 {[%clk 0:01:58]}  Ndc6 {[%clk 0:00:08]} 27. f4 {[%clk 0:01:57]}  Nf7 {[%clk 0:00:08]} 28. Bg4 {[%clk 0:01:54]}  Ncd8 {[%clk 0:00:03]} 29. Bh3 {[%clk 0:01:52]}  Nh6 {[%clk 0:00:03]} 30. Kd2 {[%clk 0:01:49]}  Kd7 {[%clk 0:00:03]} 31. Ke2 {[%clk 0:01:48]}  Ke7 {[%clk 0:00:03]} 32. Kf3 {[%clk 0:01:47]}  Nc6 {[%clk 0:00:03]} 33. Rd2 {[%clk 0:01:47]}  Nf7 {[%clk 0:00:02]} 34. g3 {[%clk 0:01:44]}  Nd6 {[%clk 0:00:02]} 35. Bf1 {[%clk 0:01:41]}  Nb5 {[%clk 0:00:02]} 36. Bxb5 {[%clk 0:01:34]}  axb5 {[%clk 0:00:03]} 37. c3 {[%clk 0:01:35]}  b4 {[%clk 0:00:02]} 38. cxb4 {[%clk 0:01:32]}  Nxb4 {[%clk 0:00:03]} 39. Rh2 {[%clk 0:01:30]}  Rg7 {[%clk 0:00:03]} 40. a3 {[%clk 0:01:13]}  Nc6 {[%clk 0:00:03]} 41. Nc2 {[%clk 0:01:13]}  Kd7 {[%clk 0:00:02]} 42. b4 {[%clk 0:01:12]}  Ke7 {[%clk 0:00:02]} 43. Rh6 {[%clk 0:01:12]}  Nd8 {[%clk 0:00:01]} 44. Ne3 {[%clk 0:01:11]}  Nf7 {[%clk 0:00:02]} 45. Rh1 {[%clk 0:01:08]}  Nd6 {[%clk 0:00:02]} 46. Rc1 {[%clk 0:01:08]}  Kd7 {[%clk 0:00:02]} 47. a4 {[%clk 0:01:07]}  Rh7 {[%clk 0:00:00]} 48. Ng4 {[%clk 0:01:04]} 1-0


[Site "https://www.chess.com"]

[Event "Titled Tuesday Blitz August 22 Late 2023"]
[White "Tologon tegin, Semetei"]
[Black "Lenderman, Aleksandr"]
[WhiteFideId "13800574"]
[BlackFideId "2021285"]
[WhiteElo "2602"]
[BlackElo "2843"]
[Result "1-0"]
[Round "6"]
[TimeControl "180+1"]
[Date "2023.08.22"]
[WhiteClock "0:00:12"]
[BlackClock "0:00:11"]
[Board "35"]

1. d4 {[%clk 0:02:55]}  e6 {[%clk 0:02:59]} 2. Nc3 {[%clk 0:02:54]}  f5 {[%clk 0:02:56]} 3. Nf3 {[%clk 0:02:51]}  Nf6 {[%clk 0:02:56]} 4. Bf4 {[%clk 0:02:48]}  b6 {[%clk 0:02:54]} 5. e3 {[%clk 0:02:45]}  Bb7 {[%clk 0:02:54]} 6. a3 {[%clk 0:02:39]}  Be7 {[%clk 0:02:45]} 7. h3 {[%clk 0:02:35]}  O-O {[%clk 0:02:35]} 8. g4 {[%clk 0:02:31]}  Ne4 {[%clk 0:02:29]} 9. gxf5 {[%clk 0:02:24]}  Nxc3 {[%clk 0:02:28]} 10. bxc3 {[%clk 0:02:24]}  exf5 {[%clk 0:02:29]} 11. Bc4+ {[%clk 0:02:21]}  Kh8 {[%clk 0:02:28]} 12. Rg1 {[%clk 0:02:21]}  Qe8 {[%clk 0:02:26]} 13. Ng5 {[%clk 0:02:20]}  h6 {[%clk 0:02:18]} 14. Nf7+ {[%clk 0:02:07]}  Rxf7 {[%clk 0:02:17]} 15. Qh5 {[%clk 0:02:08]}  d5 {[%clk 0:02:03]} 16. Be5 {[%clk 0:01:34]}  Bf8 {[%clk 0:01:51]} 17. Rg6 {[%clk 0:01:12]}  Kg8 {[%clk 0:01:44]} 18. Kd2 {[%clk 0:01:06]}  Nd7 {[%clk 0:01:41]} 19. Rag1 {[%clk 0:00:56]}  Re7 {[%clk 0:00:44]} 20. Bd3 {[%clk 0:00:27]}  Rxe5 {[%clk 0:00:42]} 21. dxe5 {[%clk 0:00:19]}  Nxe5 {[%clk 0:00:43]} 22. Qxf5 {[%clk 0:00:19]}  Nxd3 {[%clk 0:00:36]} 23. Rxh6 {[%clk 0:00:16]}  Qe4 {[%clk 0:00:32]} 24. Qh5 {[%clk 0:00:13]}  g5 {[%clk 0:00:10]} 25. Rxg5+ {[%clk 0:00:12]}  Bg7 {[%clk 0:00:11]} 26. Rh8# {[%clk 0:00:12]} 1-0


[Site "https://www.chess.com"]

[Event "Titled Tuesday Blitz August 22 Late 2023"]
[White "subham777"]
[Black "Dourerassou, Jonathan"]
[BlackFideId "628050"]
[WhiteElo "2550"]
[BlackElo "2687"]
[Result "0-1"]
[Round "6"]
[TimeControl "180+1"]
[Date "2023.08.22"]
[WhiteClock "0:00:02"]
[BlackClock "0:01:11"]
[Board "40"]

1. e4 {[%clk 0:03:00]}  d6 {[%clk 0:02:57]} 2. d4 {[%clk 0:02:59]}  g6 {[%clk 0:02:57]} 3. Nc3 {[%clk 0:02:59]}  Bg7 {[%clk 0:02:58]} 4. Be3 {[%clk 0:02:59]}  Nd7 {[%clk 0:02:58]} 5. Qd2 {[%clk 0:02:59]}  c5 {[%clk 0:02:58]} 6. O-O-O {[%clk 0:02:58]}  cxd4 {[%clk 0:02:58]} 7. Bxd4 {[%clk 0:02:59]}  Ngf6 {[%clk 0:02:59]} 8. f3 {[%clk 0:02:59]}  O-O {[%clk 0:02:59]} 9. h4 {[%clk 0:02:59]}  Qa5 {[%clk 0:02:59]} 10. h5 {[%clk 0:02:55]}  Ne5 {[%clk 0:02:49]} 11. hxg6 {[%clk 0:02:44]}  fxg6 {[%clk 0:02:49]} 12. Kb1 {[%clk 0:02:41]}  Be6 {[%clk 0:02:48]} 13. Nh3 {[%clk 0:02:31]}  Bxh3 {[%clk 0:02:27]} 14. Rxh3 {[%clk 0:02:24]}  Rac8 {[%clk 0:02:26]} 15. Be2 {[%clk 0:02:08]}  Nc4 {[%clk 0:02:25]} 16. Bxc4+ {[%clk 0:02:04]}  Rxc4 {[%clk 0:02:26]} 17. Bxf6 {[%clk 0:01:53]}  Bxf6 {[%clk 0:02:23]} 18. Nd5 {[%clk 0:01:38]}  Qxd2 {[%clk 0:02:19]} 19. Nxf6+ {[%clk 0:01:25]}  Rxf6 {[%clk 0:02:20]} 20. Rxd2 {[%clk 0:01:26]}  Rxe4 {[%clk 0:02:19]} 21. a3 {[%clk 0:01:12]}  Re3 {[%clk 0:02:11]} 22. Rh4 {[%clk 0:01:09]}  Rf5 {[%clk 0:02:05]} 23. Rc4 {[%clk 0:01:06]}  Kf7 {[%clk 0:02:00]} 24. Rc7 {[%clk 0:01:04]}  Rb5 {[%clk 0:01:58]} 25. Rxd6 {[%clk 0:00:59]}  Re1+ {[%clk 0:01:58]} 26. Ka2 {[%clk 0:00:59]}  Re2 {[%clk 0:01:59]} 27. Rdd7 {[%clk 0:00:57]}  h5 {[%clk 0:01:52]} 28. g3 {[%clk 0:00:46]}  Re3 {[%clk 0:01:51]} 29. a4 {[%clk 0:00:44]}  Rb6 {[%clk 0:01:48]} 30. b3 {[%clk 0:00:39]}  Kf6 {[%clk 0:01:48]} 31. Rd3 {[%clk 0:00:31]}  Re2 {[%clk 0:01:43]} 32. Ka3 {[%clk 0:00:20]}  Rg2 {[%clk 0:01:41]} 33. f4 {[%clk 0:00:19]}  Re2 {[%clk 0:01:40]} 34. Rdd7 {[%clk 0:00:17]}  Re3 {[%clk 0:01:38]} 35. Kb2 {[%clk 0:00:16]}  a5 {[%clk 0:01:33]} 36. Ka2 {[%clk 0:00:14]}  Rc6 {[%clk 0:01:29]} 37. Rxc6+ {[%clk 0:00:08]}  bxc6 {[%clk 0:01:30]} 38. Rd3 {[%clk 0:00:08]}  Rxd3 {[%clk 0:01:22]} 39. cxd3 {[%clk 0:00:09]}  e5 {[%clk 0:01:23]} 40. fxe5+ {[%clk 0:00:06]}  Kxe5 {[%clk 0:01:24]} 41. b4 {[%clk 0:00:05]}  axb4 {[%clk 0:01:22]} 42. Kb3 {[%clk 0:00:04]}  c5 {[%clk 0:01:22]} 43. Kc4 {[%clk 0:00:04]}  g5 {[%clk 0:01:11]} 44. Kxc5 {[%clk 0:00:03]}  b3 {[%clk 0:01:11]} 45. a5 {[%clk 0:00:03]}  b2 {[%clk 0:01:11]} 46. a6 {[%clk 0:00:02]}  b1=Q {[%clk 0:01:11]} 0-1


[Site "https://www.chess.com"]

[Event "Titled Tuesday Blitz August 22 Late 2023"]
[White "Glavina, Pablo"]
[Black "Zhu, Jiner"]
[WhiteFideId "100234"]
[BlackFideId "8608059"]
[WhiteElo "2533"]
[BlackElo "2674"]
[Result "1-0"]
[Round "6"]
[TimeControl "180+1"]
[Date "2023.08.22"]
[WhiteClock "0:00:07"]
[BlackClock "0:00:12"]
[Board "41"]

1. c4 {[%clk 0:03:00]}  Nf6 {[%clk 0:02:58]} 2. Nc3 {[%clk 0:03:00]}  e5 {[%clk 0:02:58]} 3. Nf3 {[%clk 0:03:00]}  Nc6 {[%clk 0:02:58]} 4. g3 {[%clk 0:03:01]}  d5 {[%clk 0:02:58]} 5. cxd5 {[%clk 0:03:00]}  Nxd5 {[%clk 0:02:59]} 6. Bg2 {[%clk 0:03:01]}  Nb6 {[%clk 0:02:58]} 7. O-O {[%clk 0:03:00]}  Be7 {[%clk 0:02:59]} 8. b3 {[%clk 0:03:00]}  O-O {[%clk 0:02:59]} 9. Bb2 {[%clk 0:03:01]}  f6 {[%clk 0:02:58]} 10. Rc1 {[%clk 0:03:00]}  Bg4 {[%clk 0:02:56]} 11. d3 {[%clk 0:02:57]}  Qd7 {[%clk 0:02:47]} 12. Ne4 {[%clk 0:02:52]}  Rad8 {[%clk 0:02:40]} 13. Qc2 {[%clk 0:02:42]}  Rfe8 {[%clk 0:02:38]} 14. Nc5 {[%clk 0:02:38]}  Bxc5 {[%clk 0:02:38]} 15. Qxc5 {[%clk 0:02:39]}  Qe7 {[%clk 0:02:23]} 16. Qxe7 {[%clk 0:02:15]}  Rxe7 {[%clk 0:02:24]} 17. h3 {[%clk 0:02:12]}  Bc8 {[%clk 0:02:20]} 18. Nd2 {[%clk 0:02:09]}  Nd4 {[%clk 0:02:19]} 19. Rfe1 {[%clk 0:02:07]}  c6 {[%clk 0:02:15]} 20. Ba3 {[%clk 0:02:02]}  Ree8 {[%clk 0:02:09]} 21. Nc4 {[%clk 0:02:02]}  Nxc4 {[%clk 0:02:00]} 22. bxc4 {[%clk 0:02:02]}  f5 {[%clk 0:01:54]} 23. Bc5 {[%clk 0:01:49]}  a6 {[%clk 0:01:48]} 24. Bb6 {[%clk 0:01:45]}  Rd7 {[%clk 0:01:48]} 25. Kf1 {[%clk 0:01:37]}  g5 {[%clk 0:01:38]} 26. a4 {[%clk 0:01:30]}  h6 {[%clk 0:01:36]} 27. a5 {[%clk 0:01:30]}  Rf7 {[%clk 0:01:35]} 28. e3 {[%clk 0:01:21]}  Ne6 {[%clk 0:01:35]} 29. d4 {[%clk 0:01:19]}  e4 {[%clk 0:01:32]} 30. d5 {[%clk 0:01:16]}  Nf8 {[%clk 0:01:29]} 31. Red1 {[%clk 0:01:10]}  Ng6 {[%clk 0:01:21]} 32. dxc6 {[%clk 0:00:57]}  bxc6 {[%clk 0:01:21]} 33. Rd6 {[%clk 0:00:57]}  Re6 {[%clk 0:01:11]} 34. Rcd1 {[%clk 0:00:56]}  Kh7 {[%clk 0:01:04]} 35. g4 {[%clk 0:00:42]}  f4 {[%clk 0:01:03]} 36. Rxe6 {[%clk 0:00:40]}  Bxe6 {[%clk 0:01:02]} 37. Bxe4 {[%clk 0:00:40]}  Bxc4+ {[%clk 0:01:02]} 38. Kg2 {[%clk 0:00:41]}  fxe3 {[%clk 0:01:01]} 39. fxe3 {[%clk 0:00:30]}  Bd5 {[%clk 0:00:40]} 40. Bxd5 {[%clk 0:00:25]}  cxd5 {[%clk 0:00:41]} 41. Rxd5 {[%clk 0:00:26]}  Nh4+ {[%clk 0:00:41]} 42. Kg1 {[%clk 0:00:24]}  Rf3 {[%clk 0:00:38]} 43. Rd7+ {[%clk 0:00:24]}  Kg8 {[%clk 0:00:37]} 44. Rd8+ {[%clk 0:00:17]}  Kf7 {[%clk 0:00:37]} 45. Rd7+ {[%clk 0:00:16]}  Ke8 {[%clk 0:00:33]} 46. Ra7 {[%clk 0:00:15]}  Rxh3 {[%clk 0:00:33]} 47. Rxa6 {[%clk 0:00:15]}  Rg3+ {[%clk 0:00:33]} 48. Kf2 {[%clk 0:00:15]}  Rxg4 {[%clk 0:00:33]} 49. Ra8+ {[%clk 0:00:13]}  Kd7 {[%clk 0:00:32]} 50. a6 {[%clk 0:00:12]}  Rg2+ {[%clk 0:00:32]} 51. Kf1 {[%clk 0:00:11]}  Ra2 {[%clk 0:00:28]} 52. a7 {[%clk 0:00:11]}  Kc6 {[%clk 0:00:27]} 53. Bd4 {[%clk 0:00:09]}  Nf3 {[%clk 0:00:23]} 54. Rc8+ {[%clk 0:00:09]}  Kd5 {[%clk 0:00:12]} 55. a8=Q+ {[%clk 0:00:07]} 1-0


[Site "https://www.chess.com"]